[Event "FIDE WYCC Open U14 2023"]
[Site "Montesilvano"]
[Date "2023.11.21"]
[Round "8.13"]
[White "Goh, Zi Han"]
[Black "Georgiadis, Anastasios"]
[Result "1-0"]
[ECO "A46"]
[WhiteElo "2333"]
[BlackElo "2001"]
[Annotator "RC"]
[PlyCount "101"]
[EventDate "2023.11.13"]
[EventType "swiss"]
[EventCountry "ITA"]
[SourceTitle "playchess.com"]
[Source "ChessBase"]
[SourceQuality "1"]
[TimeControl "40/5400+30:1800+30"]

1. d4 {[%emt 0:00:58]} Nf6 {[%emt 0:00:06]} 2. Nf3 {[%emt 0:00:26]} e6 {[%emt 0:00:08]} 3. g3 {[%emt 0:00:31]} d5 {[%emt 0:00:08]} 4. Bg2 {[%emt 0:00:12]} Be7 {[%emt 0:00:08]} 5. O-O {[%emt 0:00:19]} O-O {[%emt 0:00:07]} 6. b3 {[%emt 0:00:26]} c5 {[%emt 0:02:41]} 7. dxc5 {[%emt 0:01:33]} Bxc5 {[%emt 0:00:22]} 8. c4 {[%emt 0:00:55]} Nc6 {[%emt 0:10:34]} 9. cxd5 {[%emt 0:08:12]} exd5 {[%emt 0:01:50]} 10. Bb2 {[%emt 0:01:27]} Re8 {[%emt 0:06:02]} 11. Nc3 {[%emt 0:02:07]} Bg4 {[%emt 0:06:03]} 12. Rc1 {[%emt 0:05:11]} a6 {[%emt 0:17:42]} 13. Qd3 {[%emt 0:19:39]} d4 {[%emt 0:04:49]} 14. Na4 {[%emt 0:06:05]} Ba7 {[%emt 0:00:29]} 15. Ba3 {[%emt 0:06:04]} Nd7 {[%emt 0:12:57]} 16. Qd2 {[%emt 0:11:24]} Qf6 {[%emt 0:02:34]} 17. Nc5 {[%emt 0:05:45]} Nxc5 {[%emt 0:00:41]} 18. Bxc5 {[%emt 0:00:04]} Bxc5 {[%emt 0:01:17]} 19. Rxc5 {[%emt 0:00:06]} Rad8 {[%emt 0:00:56]} 20. Qb2 {[%emt 0:11:45]} Qe7 {[%emt 0:02:00]} 21. Rc2 {[%emt 0:00:57]} d3 {[%emt 0:01:30]} 22. Rd2 {[%emt 0:05:30]} dxe2 {[%emt 0:02:04]} 23. Re1 {[%emt 0:00:03]} Rxd2 {[%emt 0:00:33]} 24. Qxd2 {[%emt 0:00:04]} h6 {[%emt 0:07:33]} 25. h3 {[%emt 0:00:44]} Bh5 {[%emt 0:01:07]} 26. Kh1 {[%emt 0:03:14]} Bxf3 {[%emt 0:08:52]} 27. Bxf3 {[%emt 0:00:05]} Qf6 {[%emt 0:00:09]} 28. Kg2 {[%emt 0:02:14]} Nd4 {[%emt 0:00:36]} 29. Bxb7 {[%emt 0:01:58]} Qb6 {[%emt 0:02:20]} 30. Bd5 {[%emt 0:01:46]} Re5 {[%emt 0:04:06]} 31. Ba8 {[%emt 0:00:25]} Re8 {[%emt 0:01:49]} 32. Bd5 {[%emt 0:00:05]} Re5 {[%emt 0:02:06]} 33. Ba8 {[%emt 0:00:06]} Qd8 {[%emt 0:01:11]} 34. Bf3 {[%emt 0:01:29]} Rf5 {[%emt 0:01:12]} 35. Rxe2 {[%emt 0:01:59]} Rxf3 {[%emt 0:00:36]} 36. Re4 {[%emt 0:00:03]} Qf6 {[%emt 0:00:34]} 37. Qxd4 {[%emt 0:00:21]} Qxd4 {[%emt 0:00:25]} 38. Rxd4 {[%emt 0:00:04]} Rf6 {[%emt 0:00:04]} 39. Rd7 {[%emt 0:03:55]} Rc6 {[%emt 0:00:10]} 40. Ra7 {[%emt 0:00:00]} g6 {[%emt 0:00:00]} 41. Kf3 {[%emt 0:03:00]} Re6 {[%emt 0:01:24]} 42. Rc7 {[%emt 0:04:18]} Kg7 {[%emt 0:01:01]} 43. Rc4 {[%emt 0:00:16]} g5 {[%emt 0:00:55]} 44. b4 {[%emt 0:05:04]} Rf6+ {[%emt 0:04:50]} 45. Ke3 {[%emt 0:01:12]} Re6+ {[%emt 0:00:08]} 46. Re4 {[%emt 0:03:04]} Rc6 {[%emt 0:00:15]} 47. Kd3 {[%emt 0:00:31]} Kf6 {[%emt 0:02:48]} 48. a4 {[%emt 0:01:06]} Rc1 {[%emt 0:03:22]} 49. b5 {[%emt 0:02:45]} axb5 {[%emt 0:00:13]} 50. axb5 {[%emt 0:00:03]} Rb1 {[%emt 0:00:15]} 51. Kc4 {[%emt 0:00:14]} 1-0

[Event "FIDE WYCC Open U14 2023"]
[Site "Montesilvano"]
[Date "2023.11.21"]
[Round "8.14"]
[White "Morkunas, Gustas"]
[Black "Lissillour, Baptiste"]
[Result "0-1"]
[ECO "C77"]
[WhiteElo "2052"]
[BlackElo "2298"]
[Annotator "RC"]
[PlyCount "110"]
[EventDate "2023.11.13"]
[EventType "swiss"]
[EventCountry "ITA"]
[SourceTitle "playchess.com"]
[Source "ChessBase"]
[SourceQuality "1"]
[TimeControl "40/5400+30:1800+30"]

1. e4 {[%emt 0:00:03]} e5 {[%emt 0:00:07]} 2. Nf3 {[%emt 0:00:06]} Nc6 {[%emt 0:00:03]} 3. Bb5 {[%emt 0:00:07]} a6 {[%emt 0:00:04]} 4. Ba4 {[%emt 0:00:05]} Nf6 {[%emt 0:00:06]} 5. d3 {[%emt 0:00:11]} d6 {[%emt 0:00:08]} 6. c3 {[%emt 0:00:44]} g6 {[%emt 0:00:07]} 7. O-O {[%emt 0:02:25]} Bg7 {[%emt 0:00:22]} 8. Nbd2 {[%emt 0:01:15]} O-O {[%emt 0:00:06]} 9. Re1 {[%emt 0:01:01]} b5 {[%emt 0:00:07]} 10. Bc2 {[%emt 0:01:26]} Nb8 {[%emt 0:02:08]} 11. Nf1 {[%emt 0:06:02]} Bb7 {[%emt 0:03:24]} 12. d4 {[%emt 0:02:38]} Nbd7 {[%emt 0:00:36]} 13. Ng3 {[%emt 0:01:20]} Re8 {[%emt 0:00:45]} 14. h3 {[%emt 0:02:31]} a5 {[%emt 0:10:42]} 15. dxe5 {[%emt 0:11:12]} Nxe5 {[%emt 0:02:31]} 16. Nxe5 {[%emt 0:03:09]} Rxe5 {[%emt 0:00:07]} 17. Bf4 {[%emt 0:01:11]} Re8 {[%emt 0:00:21]} 18. Qd2 {[%emt 0:01:13]} Bc6 {[%emt 0:07:57]} 19. Bh6 {[%emt 0:08:02]} Bh8 {[%emt 0:02:23]} 20. Rad1 {[%emt 0:04:06]} Qb8 {[%emt 0:05:12]} 21. Re2 {[%emt 0:06:43]} Qb7 {[%emt 0:01:22]} 22. Rde1 {[%emt 0:01:07]} Nd7 {[%emt 0:02:27]} 23. Be3 {[%emt 0:13:02]} Ne5 {[%emt 0:05:59]} 24. b3 {[%emt 0:02:49]} b4 {[%emt 0:07:49]} 25. Bd4 {[%emt 0:07:07]} Bb5 {[%emt 0:15:05]} 26. c4 {[%emt 0:02:05]} Bc6 {[%emt 0:00:01]} 27. f4 {[%emt 0:02:08]} Nd7 {[%emt 0:00:01]} 28. Bxh8 {[%emt 0:01:21]} Kxh8 {[%emt 0:00:02]} 29. Kh2 {[%emt 0:01:57]} Qb6 {[%emt 0:00:41]} 30. e5 {[%emt 0:05:47]} dxe5 {[%emt 0:02:04]} 31. fxe5 {[%emt 0:00:27]} Re6 {[%emt 0:01:01]} 32. Qf4 {[%emt 0:07:05]} Kg8 {[%emt 0:02:01]} 33. Qg5 {[%emt 0:03:07]} Qc5 {[%emt 0:02:39]} 34. Nf5 Rae8 {[%emt 0:01:16]} 35. Nh6+ {[%emt 0:01:38]} Kg7 {[%emt 0:00:49]} 36. Nf5+ {[%emt 0:01:46]} Kh8 {[%emt 0:01:56]} 37. Nh6 {[%emt 0:00:34]} f6 {[%emt 0:04:14]} 38. Qh4 {[%emt 0:01:21]} Nxe5 {[%emt 0:00:15]} 39. Rxe5 {[%emt 0:00:33]} fxe5 {[%emt 0:00:16]} 40. Nf7+ {[%emt 0:00:00]} Kg8 {[%emt 0:00:00]} 41. Ng5 {[%emt 0:11:54]} R6e7 {[%emt 0:02:13]} 42. Be4 {[%emt 0:03:14]} Qd6 {[%emt 0:11:37]} 43. Rf1 {[%emt 0:05:15]} Rf8 {[%emt 0:00:45]} 44. Rxf8+ {[%emt 0:00:51]} Kxf8 {[%emt 0:00:02]} 45. Qf2+ {[%emt 0:02:16]} Kg7 {[%emt 0:01:55]} 46. c5 {[%emt 0:04:43]} Qf6 {[%emt 0:00:58]} 47. Qxf6+ {[%emt 0:00:08]} Kxf6 {[%emt 0:00:06]} 48. Nxh7+ {[%emt 0:00:10]} Rxh7 {[%emt 0:00:06]} 49. Bxc6 {[%emt 0:00:04]} Kf5 {[%emt 0:00:23]} 50. Kg3 {[%emt 0:00:05]} e4 {[%emt 0:00:13]} 51. Kf2 {[%emt 0:00:08]} Kf4 {[%emt 0:00:27]} 52. g3+ {[%emt 0:00:21]} Ke5 {[%emt 0:00:07]} 53. h4 {[%emt 0:00:06]} Rf7+ {[%emt 0:00:48]} 54. Ke2 {[%emt 0:00:05]} Rf3 {[%emt 0:00:25]} 55. g4 {[%emt 0:00:04]} Rh3 0-1

[Event "FIDE WYCC Open U14 2023"]
[Site "Montesilvano"]
[Date "2023.11.21"]
[Round "8.15"]
[White "Bolat, Inayat"]
[Black "Matyassy, Lazar"]
[Result "1/2-1/2"]
[ECO "B67"]
[WhiteElo "2088"]
[BlackElo "2281"]
[Annotator "RC"]
[PlyCount "102"]
[EventDate "2023.11.13"]
[EventType "swiss"]
[EventCountry "ITA"]
[SourceTitle "playchess.com"]
[Source "ChessBase"]
[SourceQuality "1"]
[TimeControl "40/5400+30:1800+30"]

1. e4 {[%emt 0:00:04]} c5 {[%emt 0:00:06]} 2. Nf3 {[%emt 0:00:07]} d6 {[%emt 0:00:03]} 3. d4 {[%emt 0:00:09]} cxd4 {[%emt 0:00:05]} 4. Nxd4 {[%emt 0:00:05]} Nf6 {[%emt 0:00:08]} 5. Nc3 {[%emt 0:00:09]} Nc6 {[%emt 0:00:04]} 6. Bg5 {[%emt 0:00:08]} Bd7 {[%emt 0:00:05]} 7. Qd2 {[%emt 0:14:17]} a6 {[%emt 0:04:09]} 8. O-O-O {[%emt 0:01:02]} e6 {[%emt 0:00:06]} 9. Kb1 {[%emt 0:02:07]} Be7 {[%emt 0:00:37]} 10. f3 {[%emt 0:01:04]} Nxd4 {[%emt 0:01:38]} 11. Qxd4 {[%emt 0:02:00]} Qc7 {[%emt 0:00:09]} 12. g4 {[%emt 0:02:07]} h5 {[%emt 0:03:45]} 13. gxh5 {[%emt 0:02:36]} Nxh5 {[%emt 0:00:06]} 14. h4 {[%emt 0:02:01]} Bf6 {[%emt 0:02:01]} 15. Bxf6 {[%emt 0:04:43]} Nxf6 {[%emt 0:00:10]} 16. Rg1 {[%emt 0:06:11]} Nh5 {[%emt 0:00:52]} 17. Qxd6 {[%emt 0:02:42]} Qxd6 {[%emt 0:00:09]} 18. Rxd6 {[%emt 0:00:05]} Ke7 {[%emt 0:00:38]} 19. Rb6 {[%emt 0:03:28]} Bc6 {[%emt 0:05:45]} 20. Bd3 {[%emt 0:03:05]} Nf4 {[%emt 0:07:44]} 21. Rg4 {[%emt 0:01:20]} Ng6 {[%emt 0:00:16]} 22. Ne2 {[%emt 0:03:45]} Ne5 {[%emt 0:11:46]} 23. Rg3 {[%emt 0:19:03]} Rxh4 {[%emt 0:04:06]} 24. a3 {[%emt 0:01:02]} Nxd3 {[%emt 0:18:04]} 25. cxd3 {[%emt 0:00:07]} Rd8 {[%emt 0:00:08]} 26. d4 {[%emt 0:06:08]} g6 {[%emt 0:05:57]} 27. Rg1 {[%emt 0:05:10]} Rh3 {[%emt 0:01:52]} 28. Re1 {[%emt 0:02:44]} Kf8 {[%emt 0:07:37]} 29. d5 {[%emt 0:02:51]} exd5 {[%emt 0:00:09]} 30. Nd4 {[%emt 0:00:16]} dxe4 {[%emt 0:05:31]} 31. Nxc6 {[%emt 0:00:48]} bxc6 {[%emt 0:00:08]} 32. fxe4 {[%emt 0:00:05]} Rh2 {[%emt 0:06:55]} 33. Rxc6 Rdd2 {[%emt 0:00:07]} 34. Rb6 {[%emt 0:05:36]} g5 {[%emt 0:05:41]} 35. e5 {[%emt 0:04:00]} Rhe2 {[%emt 0:02:19]} 36. Rf1 {[%emt 0:03:40]} Rxe5 {[%emt 0:03:33]} 37. Rbf6 {[%emt 0:00:28]} Re7 {[%emt 0:01:51]} 38. Rxa6 {[%emt 0:00:45]} Ree2 {[%emt 0:00:14]} 39. Rb6 {[%emt 0:01:31]} g4 {[%emt 0:01:18]} 40. Rb8+ {[%emt 0:00:00]} Kg7 {[%emt 0:00:00]} 41. Rf4 {[%emt 0:01:04]} Rg2 {[%emt 0:07:21]} 42. Rb7 {[%emt 0:01:02]} Kg6 {[%emt 0:00:42]} 43. Rb6+ {[%emt 0:01:01]} Kg7 {[%emt 0:01:23]} 44. a4 {[%emt 0:02:21]} Rdf2 {[%emt 0:04:03]} 45. Rxf2 {[%emt 0:02:31]} Rxf2 {[%emt 0:00:06]} 46. a5 {[%emt 0:00:17]} Rf5 {[%emt 0:09:26]} 47. Rb4 {[%emt 0:02:58]} Rxa5 {[%emt 0:03:01]} 48. Rxg4+ {[%emt 0:01:32]} Kf6 {[%emt 0:00:09]} 49. b4 {[%emt 0:00:23]} Rd5 {[%emt 0:01:55]} 50. Kc2 {[%emt 0:00:41]} Ke5 {[%emt 0:00:15]} 51. Kc3 {[%emt 0:00:56]} Kd6 {[%emt 0:00:17]} 1/2-1/2

[Event "FIDE WYCC Open U14 2023"]
[Site "Montesilvano"]
[Date "2023.11.21"]
[Round "8.16"]
[White "Coicev, Matei-Andrei"]
[Black "Dinh Nho Kiet"]
[Result "1-0"]
[ECO "A20"]
[WhiteElo "2006"]
[BlackElo "2253"]
[Annotator "RC"]
[PlyCount "143"]
[EventDate "2023.11.13"]
[EventType "swiss"]
[EventCountry "ITA"]
[SourceTitle "playchess.com"]
[Source "ChessBase"]
[SourceQuality "1"]
[TimeControl "40/5400+30:1800+30"]

1. c4 {[%emt 0:00:07]} e5 {[%emt 0:00:47]} 2. a3 {[%emt 0:00:09]} Nf6 {[%emt 0:00:48]} 3. d3 {[%emt 0:00:21]} g6 {[%emt 0:06:54]} 4. Nf3 {[%emt 0:01:34]} d6 {[%emt 0:00:06]} 5. Nc3 {[%emt 0:00:25]} Bg7 {[%emt 0:00:05]} 6. g3 {[%emt 0:01:29]} O-O {[%emt 0:12:47]} 7. Bg2 {[%emt 0:00:28]} Re8 {[%emt 0:03:54]} 8. O-O {[%emt 0:00:47]} c6 {[%emt 0:00:04]} 9. Qc2 {[%emt 0:10:52]} Na6 {[%emt 0:03:52]} 10. b4 {[%emt 0:04:15]} Nc7 {[%emt 0:02:01]} 11. Bb2 {[%emt 0:02:06]} Bd7 {[%emt 0:07:29]} 12. Rfd1 {[%emt 0:10:27]} Qe7 {[%emt 0:11:18]} 13. Ne4 {[%emt 0:08:05]} Nxe4 {[%emt 0:16:35]} 14. dxe4 {[%emt 0:00:24]} Be6 {[%emt 0:00:01]} 15. Bc1 {[%emt 0:12:15]} d5 {[%emt 0:07:38]} 16. cxd5 {[%emt 0:04:07]} cxd5 {[%emt 0:00:06]} 17. Ng5 {[%emt 0:03:36]} d4 {[%emt 0:00:19]} 18. Nxe6 {[%emt 0:01:28]} Nxe6 {[%emt 0:00:02]} 19. Qd3 {[%emt 0:01:37]} Rac8 {[%emt 0:02:15]} 20. Bd2 {[%emt 0:01:26]} h5 {[%emt 0:05:27]} 21. Bh3 {[%emt 0:05:21]} Rc7 {[%emt 0:03:58]} 22. Rac1 {[%emt 0:01:37]} Rec8 {[%emt 0:00:12]} 23. Rxc7 {[%emt 0:00:49]} Rxc7 {[%emt 0:00:05]} 24. Rc1 {[%emt 0:01:49]} Rxc1+ {[%emt 0:00:59]} 25. Bxc1 {[%emt 0:00:36]} Qc7 {[%emt 0:00:04]} 26. Bd2 {[%emt 0:01:08]} a6 {[%emt 0:02:18]} 27. Qb3 {[%emt 0:02:48]} Kh7 {[%emt 0:01:30]} 28. Bxe6 {[%emt 0:08:10]} fxe6 {[%emt 0:00:45]} 29. Bg5 {[%emt 0:04:46]} Qc6 {[%emt 0:02:22]} 30. Qd3 {[%emt 0:03:54]} b5 {[%emt 0:00:18]} 31. Kg2 {[%emt 0:00:42]} Kg8 {[%emt 0:01:16]} 32. h4 {[%emt 0:00:41]} Qc7 {[%emt 0:01:51]} 33. Kf3 {[%emt 0:01:33]} Kf7 {[%emt 0:03:05]} 34. Kg2 {[%emt 0:00:18]} Kg8 {[%emt 0:01:31]} 35. Kf3 {[%emt 0:00:10]} Kh7 {[%emt 0:01:00]} 36. Kg2 {[%emt 0:00:25]} Bh6 {[%emt 0:00:10]} 37. Bxh6 {[%emt 0:00:39]} Kxh6 {[%emt 0:00:01]} 38. Qd2+ {[%emt 0:00:13]} Kg7 {[%emt 0:03:35]} 39. Qg5 {[%emt 0:02:10]} Kf7 {[%emt 0:01:21]} 40. Qh6 {[%emt 0:00:00]} Qd6 {[%emt 0:00:00]} 41. Qh7+ {[%emt 0:01:59]} Kf6 {[%emt 0:00:55]} 42. Qg8 {[%emt 0:02:13]} Qe7 {[%emt 0:00:28]} 43. Qh8+ {[%emt 0:01:18]} Qg7 {[%emt 0:00:05]} 44. Qa8 {[%emt 0:00:29]} Qd7 {[%emt 0:01:12]} 45. Qxa6 {[%emt 0:01:21]} d3 {[%emt 0:09:25]} 46. exd3 {[%emt 0:00:14]} Qxd3 {[%emt 0:00:04]} 47. Qc6 {[%emt 0:01:11]} Qe2 {[%emt 0:04:14]} 48. Qa8 {[%emt 0:03:58]} Kf7 {[%emt 0:04:10]} 49. Qa7+ {[%emt 0:00:31]} Ke8 {[%emt 0:00:31]} 50. Qb8+ {[%emt 0:00:16]} Kd7 {[%emt 0:00:02]} 51. Qxe5 {[%emt 0:00:08]} Qd3 {[%emt 0:00:46]} 52. Qg7+ {[%emt 0:03:05]} Kd6 {[%emt 0:00:05]} 53. Qxg6 {[%emt 0:03:22]} Qxa3 {[%emt 0:00:01]} 54. Qe8 {[%emt 0:00:26]} Qa4 {[%emt 0:01:10]} 55. Qf8+ {[%emt 0:00:39]} Ke5 {[%emt 0:00:52]} 56. Qc5+ {[%emt 0:00:40]} Kxe4 {[%emt 0:00:09]} 57. Qxh5 {[%emt 0:00:08]} Kd3 {[%emt 0:00:50]} 58. Qg4 {[%emt 0:00:49]} e5 {[%emt 0:01:08]} 59. h5 {[%emt 0:00:35]} e4 {[%emt 0:00:23]} 60. Qd7+ {[%emt 0:01:34]} Ke2 {[%emt 0:04:56]} 61. Qd4 {[%emt 0:00:53]} Qa8 {[%emt 0:00:10]} 62. Qe3+ {[%emt 0:00:09]} Kd1 {[%emt 0:00:03]} 63. h6 {[%emt 0:00:52]} Qb7 {[%emt 0:00:03]} 64. Kg1 {[%emt 0:01:23]} Qh7 {[%emt 0:01:15]} 65. Qg5 {[%emt 0:04:17]} Ke2 {[%emt 0:00:37]} 66. Qxb5+ {[%emt 0:00:32]} Ke1 {[%emt 0:00:52]} 67. Qc4 {[%emt 0:00:41]} Qf5 {[%emt 0:03:21]} 68. Qc1+ {[%emt 0:00:11]} Ke2 {[%emt 0:00:04]} 69. Qe3+ {[%emt 0:00:05]} Kd1 {[%emt 0:00:04]} 70. b5 {[%emt 0:02:01]} Qxb5 {[%emt 0:00:09]} 71. Qd4+ {[%emt 0:00:48]} Kc1 {[%emt 0:00:06]} 72. Qxe4 {[%emt 0:00:11]} 1-0

[Event "FIDE WYCC Open U14 2023"]
[Site "Montesilvano"]
[Date "2023.11.21"]
[Round "8.17"]
[White "Nurgaliyev, Sauat"]
[Black "Boci, Mateo"]
[Result "1-0"]
[ECO "B31"]
[WhiteElo "2235"]
[BlackElo "1832"]
[Annotator "RC"]
[PlyCount "111"]
[EventDate "2023.11.13"]
[EventType "swiss"]
[EventCountry "ITA"]
[SourceTitle "playchess.com"]
[Source "ChessBase"]
[SourceQuality "1"]
[TimeControl "40/5400+30:1800+30"]

1. e4 {[%emt 0:00:13]} c5 {[%emt 0:00:27]} 2. Nf3 {[%emt 0:00:28]} Nc6 {[%emt 0:00:07]} 3. Bb5 {[%emt 0:00:19]} g6 {[%emt 0:00:21]} 4. Bxc6 {[%emt 0:00:15]} dxc6 {[%emt 0:03:43]} 5. d3 {[%emt 0:00:08]} Bg7 {[%emt 0:00:13]} 6. h3 {[%emt 0:00:15]} e5 {[%emt 0:00:10]} 7. a4 {[%emt 0:00:37]} b6 {[%emt 0:01:25]} 8. Na3 {[%emt 0:04:08]} Qe7 {[%emt 0:04:04]} 9. Nc4 {[%emt 0:01:12]} f6 {[%emt 0:02:12]} 10. Be3 {[%emt 0:01:16]} Nh6 {[%emt 0:01:02]} 11. O-O {[%emt 0:05:33]} O-O {[%emt 0:01:18]} 12. c3 {[%emt 0:01:18]} Be6 {[%emt 0:01:25]} 13. b3 {[%emt 0:00:35]} Rfd8 {[%emt 0:03:55]} 14. Qe2 {[%emt 0:02:57]} Nf7 {[%emt 0:01:56]} 15. Rab1 {[%emt 0:17:27]} g5 {[%emt 0:06:02]} 16. b4 {[%emt 0:07:47]} cxb4 {[%emt 0:00:55]} 17. cxb4 {[%emt 0:01:10]} Nh8 {[%emt 0:00:58]} 18. d4 {[%emt 0:03:05]} g4 {[%emt 0:04:41]} 19. hxg4 {[%emt 0:06:24]} Bxg4 {[%emt 0:00:07]} 20. dxe5 {[%emt 0:00:17]} fxe5 {[%emt 0:00:13]} 21. Qa2 {[%emt 0:04:21]} Nf7 {[%emt 0:06:22]} 22. Ng5 {[%emt 0:07:30]} Kh8 {[%emt 0:06:31]} 23. f4 {[%emt 0:07:06]} Nxg5 {[%emt 0:03:20]} 24. fxg5 {[%emt 0:00:06]} Rf8 {[%emt 0:00:39]} 25. Rxf8+ {[%emt 0:04:45]} Rxf8 {[%emt 0:01:06]} 26. a5 {[%emt 0:00:00]} Be6 {[%emt 0:07:43]} 27. Qc2 {[%emt 0:01:49]} Qf7 {[%emt 0:05:57]} 28. Nd2 {[%emt 0:00:52]} bxa5 {[%emt 0:05:13]} 29. bxa5 {[%emt 0:00:45]} Rc8 {[%emt 0:00:53]} 30. Qc5 {[%emt 0:02:14]} Qd7 {[%emt 0:02:09]} 31. Qxa7 {[%emt 0:02:50]} Qd3 {[%emt 0:00:59]} 32. Rb8 {[%emt 0:04:07]} Bf8 {[%emt 0:03:50]} 33. Nf1 {[%emt 0:06:37]} Qxe4 {[%emt 0:00:54]} 34. Rxc8 {[%emt 0:01:16]} Bxc8 {[%emt 0:00:06]} 35. Qb8 {[%emt 0:00:50]} Qf5 {[%emt 0:01:04]} 36. Ng3 {[%emt 0:01:00]} Qg4 {[%emt 0:00:45]} 37. Bf2 {[%emt 0:01:43]} Kg8 {[%emt 0:01:00]} 38. Qxe5 {[%emt 0:01:39]} Qd1+ {[%emt 0:01:03]} 39. Kh2 {[%emt 0:00:24]} Qd5 {[%emt 0:00:41]} 40. Qe8 {[%emt 0:00:00]} Bb7 {[%emt 0:00:00]} 41. Ne4 {[%emt 0:06:14]} Qf5 {[%emt 0:02:03]} 42. Nf6+ {[%emt 0:03:41]} Kg7 {[%emt 0:00:09]} 43. Nh5+ {[%emt 0:05:24]} Kg8 {[%emt 0:00:17]} 44. Bd4 {[%emt 0:05:21]} c5 {[%emt 0:01:42]} 45. Be5 {[%emt 0:01:12]} Qf7 {[%emt 0:02:55]} 46. Nf6+ {[%emt 0:00:55]} Kg7 {[%emt 0:00:01]} 47. Nxh7+ {[%emt 0:00:54]} Kg8 {[%emt 0:00:01]} 48. Nf6+ {[%emt 0:03:28]} Kg7 {[%emt 0:00:04]} 49. Nh7+ {[%emt 0:05:06]} Kg8 {[%emt 0:00:04]} 50. Qxf7+ {[%emt 0:00:11]} Kxf7 {[%emt 0:00:05]} 51. g6+ {[%emt 0:00:04]} Kg8 {[%emt 0:00:24]} 52. Nxf8 {[%emt 0:00:51]} Kxf8 {[%emt 0:00:01]} 53. g7+ {[%emt 0:00:06]} Kf7 {[%emt 0:00:10]} 54. Kg3 {[%emt 0:00:56]} c4 {[%emt 0:00:08]} 55. Kf2 {[%emt 0:00:14]} Kg8 {[%emt 0:00:09]} 56. g3 {[%emt 0:00:10]} 1-0

[Event "FIDE WYCC Open U14 2023"]
[Site "Montesilvano"]
[Date "2023.11.21"]
[Round "8.18"]
[White "Rustamov, Rustam"]
[Black "Dumanuly, Sultanbeibarys"]
[Result "1-0"]
[ECO "B56"]
[WhiteElo "2229"]
[BlackElo "1931"]
[Annotator "RC"]
[PlyCount "71"]
[EventDate "2023.11.13"]
[EventType "swiss"]
[EventCountry "ITA"]
[SourceTitle "playchess.com"]
[Source "ChessBase"]
[SourceQuality "1"]
[TimeControl "40/5400+30:1800+30"]

1. e4 {[%emt 0:00:02]} c5 {[%emt 0:00:05]} 2. Nf3 {[%emt 0:00:04]} d6 {[%emt 0:00:04]} 3. d4 {[%emt 0:00:22]} cxd4 {[%emt 0:00:05]} 4. Nxd4 {[%emt 0:00:02]} Nf6 {[%emt 0:00:07]} 5. Nc3 {[%emt 0:00:03]} Nc6 {[%emt 0:00:04]} 6. f3 {[%emt 0:00:10]} e5 {[%emt 0:01:21]} 7. Nb3 {[%emt 0:00:55]} Be7 {[%emt 0:00:18]} 8. Be3 {[%emt 0:00:18]} Be6 {[%emt 0:03:31]} 9. Nd5 {[%emt 0:01:12]} O-O {[%emt 0:11:32]} 10. c4 {[%emt 0:00:39]} Nd7 {[%emt 0:07:31]} 11. Qd2 {[%emt 0:02:57]} a5 {[%emt 0:07:18]} 12. Nxe7+ {[%emt 0:02:18]} Qxe7 {[%emt 0:00:36]} 13. Rd1 {[%emt 0:00:17]} Rfd8 {[%emt 0:18:55]} 14. Be2 {[%emt 0:03:06]} Nc5 {[%emt 0:03:59]} 15. O-O {[%emt 0:00:22]} a4 {[%emt 0:00:26]} 16. Na1 {[%emt 0:00:20]} h6 {[%emt 0:04:03]} 17. g4 {[%emt 0:05:12]} f6 {[%emt 0:05:26]} 18. Nc2 {[%emt 0:02:51]} Qf7 {[%emt 0:02:50]} 19. Na3 {[%emt 0:01:31]} Rd7 {[%emt 0:03:53]} 20. Nb5 {[%emt 0:02:28]} Rad8 {[%emt 0:00:20]} 21. Qc3 {[%emt 0:01:12]} h5 {[%emt 0:06:10]} 22. h3 {[%emt 0:00:54]} hxg4 {[%emt 0:04:03]} 23. hxg4 {[%emt 0:00:08]} Qg6 {[%emt 0:02:03]} 24. Kf2 {[%emt 0:00:58]} Bf7 {[%emt 0:03:58]} 25. Rh1 {[%emt 0:02:18]} Ne6 {[%emt 0:00:56]} 26. Bd3 {[%emt 0:01:24]} Kf8 {[%emt 0:02:42]} 27. Bc2 {[%emt 0:02:13]} Ra8 {[%emt 0:04:00]} 28. Qa3 {[%emt 0:02:52]} Kg8 {[%emt 0:00:28]} 29. Rh5 {[%emt 0:00:58]} Ncd4 {[%emt 0:01:23]} 30. Nxd4 {[%emt 0:05:38]} exd4 {[%emt 0:00:43]} 31. Bc1 {[%emt 0:03:57]} Kf8 {[%emt 0:01:27]} 32. Bd3 {[%emt 0:00:56]} Nc5 {[%emt 0:00:36]} 33. Rxc5 {[%emt 0:01:43]} Qh7 {[%emt 0:01:13]} 34. Rh5 {[%emt 0:01:28]} Bxh5 {[%emt 0:00:08]} 35. Rh1 {[%emt 0:00:04]} Ra5 {[%emt 0:01:29]} 36. e5 1-0